Cogmind - Beta 13 @@@ ROGUE MODE // 2024.07.05 @ 16:03:20 Player: Cinder Result: Destroyed by as-85789 with Assembled Blade Performance ------------- Evolutions (0) 0 Regions Visited (2) 400 Robots Destroyed (11) 55 Value Destroyed (203) 203 Prototype IDs (0) 0 Alien Tech Used (0) 0 Bonus (0) 0 TOTAL SCORE: 658 Bonus ------- None Cogmind --------- Core Integrity 0/250 Matter 266/300 Energy 250/250 System Corruption 0% Temperature Cool (0) Movement Treading (240) Ox1 Location -10/Mines Parts ------- > --- POWER (1) -------- Ion Engine > --- PROPULSION (2) --- Light Treads > --- UTILITY (2) ------ Large Storage Unit > --- WEAPON (2) ------- (None) > --- INVENTORY (15) --- Ion Engine Light Ion Engine Light Ion Engine Aluminum Leg Aluminum Leg Aluminum Leg Aluminum Leg Aluminum Leg ECM Suite Bomb Drone Bay Mining Laser Peak State ------------ > --- POWER ------------ Ion Engine > --- PROPULSION ------- Light Treads Light Treads > --- UTILITY ---------- Large Storage Unit > --- WEAPON ----------- Assault Rifle Assault Rifle > --- INVENTORY -------- Ion Engine Ion Engine Light Ion Engine Light Treads Aluminum Leg Aluminum Leg Aluminum Leg Aluminum Leg Aluminum Leg ECM Suite Bomb Drone Bay EM Pulse Gun Light Cannon Mining Laser [Rating: 8] Favorites ----------- Power Ion Engine Engine Ion Engine Propulsion Light Treads Treads Light Treads Utility Large Storage Unit Storage Large Storage Unit Weapon Assault Rifle Energy Gun EM Pulse Gun Ballistic Gun Assault Rifle Ballistic Cannon Light Cannon Build | -11 -10 -10 ------- Run | Yrd Mat Min Slots Evolved . | . . . Power . | . . . Propulsion . | . . . Utility . | . . . Weapon . | . . . Parts Attached 11 | 6 1 4 Power 2 | 1 . 1 Engine 2 | 1 . 1 Core . | . . . Reactor . | . . . Propulsion 3 | 2 . 1 Treads 3 | 2 . 1 Leg . | . . . Wheel . | . . . Hover . | . . . Flight . | . . . Utility 2 | 1 1 . Device . | . . . Storage 2 | 1 1 . Processor . | . . . Hackware . | . . . Protection . | . . . Artifact . | . . . Weapon 4 | 2 . 2 Energy Gun 1 | . . 1 Energy Cannon . | . . . Ballistic Gun 2 | 2 . . Ballistic Cannon 1 | . . 1 Launcher . | . . . Special Weapon . | . . . Impact Weapon . | . . . Slashing Weapon . | . . . Piercing Weapon . | . . . Special Melee Weapon . | . . . Unidentified Prototypes . | . . . Parts Lost 5 | . . 5 Power . | . . . Propulsion 2 | . . 2 Utility . | . . . Weapon 3 | . . 3 Highest Loss Streak 5 | . . 5 To Critical Strikes . | . . . Average Slot Usage (%) 83 | . 85 82 Engine 14 | . 14 14 Treads 27 | . 28 26 Storage 14 | . 14 14 Ballistic Gun 27 | . 28 26 Naked Turns . | . . . Heaviest Build 30 | 14 29 30 Greatest Support 40 | 40 40 40 Greatest Overweight (x) 1 | . . 1 Average Overweight (x) . | . . . Largest Inventory Capacity 15 | 8 15 15 Average Capacity 13 | 6 13 15 Most Carried 15 | 6 14 15 Average Carried 11 | 3 8 14 Final Capacity 15 | 8 15 15 Final Carried 14 | 4 14 12 Class Distribution -------------------- 100% | Mutant Dominant Class ---------------- Mutant | -10/Materials Mutant | -10/Mines Resources | -11 -10 -10 ----------- Run | Yrd Mat Min Matter Collected 448 | 207 200 41 Remotely . | . . . Salvage Created 243 | . 200 43 Parts 18 | . 12 6 Haulers Intercepted . | . . . Recyclers Shooed 2 | . 1 1 Parts Field Recycled . | . . . Retrieved Matter . | . . . Parts Self-Destructed . | . . . Prevented . | . . . Kills | -11 -10 -10 ------- Run | Yrd Mat Min Combat Hostiles Destroyed 10 | . 7 3 Guns 10 | . 7 3 Classes Destroyed 3 | . 2 1 Tunneler 1 | . . 1 Swarmer 6 | . 3 3 Grunt 4 | . 4 . Best Kill Streak 3 | . 3 3 Combat Bots Only 3 | . 3 3 Max Kills in Single Turn 1 | . 1 1 Gunslinging . | . . . Exploded . | . . . Melee . | . . . Uniques/NPCs Destroyed . | . . . Combat | -11 -10 -10 -------- Run | Yrd Mat Min Hostile Shots Fired 94 | . 44 50 Missed 28 | . 10 18 Damage Taken 1130 | . 310 820 Core 275 | . 23 252 Absorbed by Shields . | . . . Core Remaining (%) 100 | 100 . . Volleys Fired 33 | . 23 10 Largest 2 | . 2 2 Hottest 75 | . 40 75 Shots Fired 65 | . 46 19 Gun 62 | . 46 16 Cannon 3 | . . 3 Launcher . | . . . Special . | . . . Kinetic 61 | . 46 15 Thermal . | . . . Explosive . | . . . Electromagnetic 4 | . . 4 Robot Hit Streak 11 | . 11 8 Robot Miss Streak 6 | . 6 2 Penetration Max . | . . . Secondary Targets 1 | . 1 . Max Gunslinging Chain 1 | . 1 . Shots Hit Robots 41 | . 32 9 Core Hits 16 | . 11 5 Critical Kills 1 | . . 1 Critical Parts Destroyed . | . . . Critical Strikes 1 | . . 1 Destroy 1 | . . 1 Melee Attacks . | . . . Impact . | . . . Slashing . | . . . Piercing . | . . . Sneak Attacks . | . . . Combat Hostiles . | . . . Follow-up Attacks . | . . . Damage Inflicted 550 | . 420 130 Guns 528 | . 420 108 Cannons 15 | . . 15 Explosions . | . . . Melee . | . . . Ramming 7 | . . 7 Kinetic 511 | . 420 91 Thermal . | . . . Explosive . | . . . Electromagnetic 32 | . . 32 Impact . | . . . Slashing . | . . . Piercing . | . . . Highest Corruption . | . . . Average Corruption . | . . . Corruption Purged . | . . . Corruption Blocked . | . . . Overload Shots . | . . . Overflow Damage . | . . . Projectiles . | . . . Explosions . | . . . Melee . | . . . Knockbacks 1 | . . 1 Impact . | . . . Kinetic 1 | . . 1 Secondary . | . . . Self-Inflicted Damage . | . . . Shots . | . . . Rammed 3 | . . 3 Targets Rammed 4 | . . 4 Kicked . | . . . Crushed 1 | . . 1 Highest Temperature 30 | . . 30 Average Temperature 17 | . . 17 Received Heat Transfer 96 | . 96 . Siege Activations . | . . . Robots Corrupted . | . . . Combat Hostiles . | . . . Parts Fried . | . . . Impact Corruptions . | . . . Robots Melted . | . . . Combat Hostiles . | . . . Parts Melted . | . . . Heat Transferred . | . . . Parts Sabotaged . | . . . Parts Stolen . | . . . Parts Stripped . | . . . Power Chain Reactions . | . . . Alert | -11 -10 -10 ------- Run | Yrd Mat Min Peak Influence 161 | . 161 137 Initial 62 | . . 62 Average 61 | . 65 67 Maximum Alert Level . | . . . Low Security (%) 100 | 100 100 100 Level 1 . | . . . Level 2 . | . . . Level 3 . | . . . Level 4 . | . . . Level 5 . | . . . High Security . | . . . Max Security . | . . . Squads Dispatched 1 | . 1 . Investigation . | . . . Extermination . | . . . Reinforcement 1 | . 1 . Assault . | . . . Garrison . | . . . Intercept . | . . . Searches Triggered . | . . . Construction Impeded . | . . . Haulers Reinforced . | . . . Active Scanning Responses . | . . . Cargo Convoy Interrupts . | . . . Stealth | -11 -10 -10 --------- Run | Yrd Mat Min Distress Signals . | . . . Communications Jammed . | . . . Distress Signals . | . . . Times Spotted 32 | . 8 24 Peak Tracking Total 15 | . 3 15 Tactical Retreats 1 | . . 1 Traps | -11 -10 -10 ------- Run | Yrd Mat Min Traps Triggered . | . . . Indirectly . | . . . Trap Hack Attempts . | . . . Triggered . | . . . Disarmed . | . . . Reprogrammed . | . . . Reused . | . . . Traps Extracted . | . . . Installed . | . . . Triggered . | . . . Machines | -11 -10 -10 ---------- Run | Yrd Mat Min Machines Disabled . | . . . Max in Single Turn . | . . . Machines Repaired . | . . . Machines Dismantled . | . . . Machines Sabotaged . | . . . Overloaded Fab Kills . | . . . Hacking | -11 -10 -10 --------- Run | Yrd Mat Min Machines Accessed 2 | . 1 1 Terminals 1 | . 1 . Fabricators . | . . . Repair Stations . | . . . Recycling Units . | . . . Scanalyzers . | . . . Garrison Access . | . . . Total Hacks 4 | . 3 1 Successful 3 | . 2 1 Failed 1 | . 1 . Catastrophic . | . . . Database Lockouts . | . . . Manual . | . . . Terminals 3 | . 3 . Fabricators . | . . . Repair Stations . | . . . Recycling Units . | . . . Scanalyzers . | . . . Garrison Access . | . . . Terminal Hacks 3 | . 2 1 Open Door 1 | . . 1 Investigation Status 1 | . 1 . Hauler Manifests 1 | . 1 . Fabricator Hacks . | . . . Repair Station Hacks . | . . . Recycling Unit Hacks . | . . . Scanalyzer . | . . . Garrison Access Hacks . | . . . Unauthorized Hacks . | . . . Terminals . | . . . Fabricators . | . . . Repair Stations . | . . . Recycling Units . | . . . Scanalyzers . | . . . Garrison Access . | . . . Data Cores Recovered . | . . . Used . | . . . Hacking Detections . | . . . Full Trace Events . | . . . Feedback Events . | . . . Feedback Blocked . | . . . Robot Schematics Acquired . | . . . Robots Built . | . . . Authchips . | . . . Time . | . . . Total Robot Build Rating . | . . . Part Schematics Acquired . | . . . Parts Built . | . . . Authchips . | . . . Time . | . . . Total Part Build Rating . | . . . Parts Repaired . | . . . Time . | . . . Parts Recycled . | . . . Recycled Matter . | . . . Retrieved Matter . | . . . Retrieved Components . | . . . Parts Scanalyzed . | . . . Part Schematics Acquired . | . . . Parts Damaged . | . . . Bothacking | -11 -10 -10 ------------ Run | Yrd Mat Min Used RIF Installer . | . . . Robots Hacked . | . . . Non-combat . | . . . Combat . | . . . Robot Hacks Applied . | . . . Relay Couplers Released . | . . . Fabnet Peak Effective % . | . . . Robots Rewired . | . . . Allies Hacked . | . . . Hacks Repelled . | . . . Allies | -11 -10 -10 -------- Run | Yrd Mat Min Total Allies . | . . . Largest Group . | . . . Highest-Rated Group . | . . . Highest-Rated Ally . | . . . Total Orders . | . . . Ally Attacks . | . . . Total Damage . | . . . Kills . | . . . Allies Corrupted . | . . . Allies Melted . | . . . Intel | -11 -10 -10 ------- Run | Yrd Mat Min Robot Analysis Total . | . . . Derelict Logs Recovered 2 | . . 2 Drone Launches . | . . . Drone Recoveries . | . . . Exploration | -11 -10 -10 ------------- Run | Yrd Mat Min Turns Passed 910 | 78 359 473 Spaces Moved 471 | 46 165 260 Core 10 | 10 . . Treads 461 | 36 165 260 Legs . | . . . Wheels . | . . . Hover . | . . . Flight . | . . . Fastest Speed 50 | 50 160 160 Average Speed 158 | 136 160 161 Slowest Speed 240 | 160 160 240 Overloaded Moves . | . . . Propulsion Burnouts . | . . . Robots Hopped . | . . . Cave-ins Triggered . | . . . Exploration Rate (%) 33 | 4 26 69 Regions Visited 2 Branch Regions 1 Pre-discovered Areas 1 | . . 1 Known Exits Taken . | . . . Unknown Exits Taken 2 | 1 1 . Scrap Searched 1 | . . 1 Spaces Dug . | . . . Terrain Destroyed . | . . . Melee . | . . . Projectile . | . . . AOE . | . . . Terrain Rammed . | . . . Walls Destroyed . | . . . Machines Disabled . | . . . Actions | -11 -10 -10 --------- Run | Yrd Mat Min Total 567 | 62 215 290 Wait 19 | . 13 6 Move 469 | 45 164 260 Hop . | . . . Pick Up 25 | 10 12 3 Fast Attach 1 | 1 . . Attach 9 | 5 1 3 Detach . | . . . Swap 1 | . . 1 Drop 6 | 1 2 3 Fire 33 | . 23 10 Melee . | . . . Ram 1 | . . 1 Kick . | . . . Crush 3 | . . 3 Escape Stasis . | . . . Rewire . | . . . Trap . | . . . Miscellaneous . | . . . Route ------- -11/Scrapyard -10/Materials -10/Mines History --------- Turn | Location | Event 9 | -11/Scrapyard | Discovered new exit (range 15) 79 | -11/Scrapyard | Entered Materials 325 | -10/Materials | Build established: Mutant 407 | -10/Materials | Discovered new exit (range 15) 438 | -10/Materials | Entered Mines 443 | -10/Mines | Found the Drone Emporium 466 | -10/Mines | Found Prototype Device 611 | -10/Mines | Learned location of Mines (-9) 838 | -10/Mines | Assembled infested the area 894 | -10/Mines | Core integrity fell below 50% 909 | -10/Mines | Core integrity fell below 20% 911 | -10/Mines | Destroyed by as-85789 with Assembled Blade Last Messages --------------- 00882_ as-37547 destroyed. 00882_ as-98350 destroyed. 00883_ Assault Rifle destroyed. 00884_ Laser Drill disabled. 00885_ Lgt. Treads destroyed. 00885_ as-85960 destroyed. 00886_ Slammed into as-70619. 00887_ The unstable cave ceiling collapses. 00887_ Assault Rifle destroyed. 00887_ as-70619 destroyed. 00888_ as-35387 destroyed. 00893_ The unstable cave ceiling collapses. 00893_ D-53 Grenadier destroyed. 00898_ The unstable cave ceiling collapses. 00904_ as-12111 knocked back. 00906_ Lgt. Cannon severed. 00908_ The unstable cave ceiling collapses. 00909_ Slammed into as-12111. 00910_ The unstable cave ceiling collapses. 00910_ EM Pulse Gun destroyed. Map ----- +----------------------------------------------------+ | ###### ####?# ##????????? | | ## ##????# #???## ##?????????? | | ### #?????# #??## ###??????????? | | ##?# ######## #?## ##????????????? | | ##??## ##?# % #?# ##????????????? | | ##????####??# ######?# ##???????????? | | ####???????????# #??????## ##????###???? | | ##??????????????# #???????### #??## ##??? | | #???????????????# #?????????## #### #??? | | ???????????????# #??????????# ## #??? | | ??????????????## #??????????# #???? | | ??????######## ##?????????## ##???? | | # #?????##""## #??????????## ##????? | | # #?????#"= # #???????????### ##????? | | ## ?????#" ##???##????????## ##???? | | ?? ??????#"[ ! ##### ##????????## #???? | | ??????????#" #%! # ####??????### ##???? | | ??????????##""##= # ###??????## #????? | | ???????????###### #??###### #????? | | ?????????????#% #?## #????? | | ?????????????#[[ % a # # #?# #????? | | ?????????????# #### =# # #?# ####????? | | ?????????????# #?### # % ### ##??????? | | ?????????????# #?# ## ##?????? | | ?????????????# #?# # ## #?????? | | ?????????????# ## @ # """ #?????? | | ?????????????# ### aaa # """ ##?????? | | ?????????????# #?## # """ ###??????? | | ?????????????? ???## ### ##????????? | | ?????????????? ????#### ##?# ##?????????? | | ?????????????? ???????### ###??## ###??????????? | | ?????????????? ?????????# #?????####????????????? | | ?????????????? ?????????#$#?????????????????????? | | ?????????????? ?????????# #?????????????????????? | | ?????????????? ?????????# ??????????????????????? | | ???????????????????????? ??????????????????????? | | ???????????????????????? ??????????????????????? | | ????????????????????????##??????????????????????? | | ????????????????????????????????????????????????? | | ????????????????????????????????????????????????? | | ????????????????????????????????????????????????? | | ????????????????????????????????????????????????? | | ????????????????????????????????????????????????? | | ????????????????????????????????????????????????? | | ????????????????????????????????????????????????? | | ????????????????????????????????????????????????? | | ????????????????????????????????????????????????? | | | | | | | +----------------------------------------------------+ Best States ------------- Heat Dissipation 25 Energy Generation 10 Energy Capacity 250 Matter Stores 300 Matter Capacity 300 Sight Range 16 Terrain Scan Density 10 Evasion (%) 50 Recoil Reduction 2 Item Schematics ----------------- None Robot Schematics ------------------ None Fabricated ------------ Nothing Alien Tech Used ----------------- None Achievements -------------- None Challenges ------------ None Game ------ Seed SwarmDisruptionKit Manual? 0 Play Time 00:08:30 Cumulative 19.6 hours Start 2024.07.05 @ 15:55:06 End 2024.07.05 @ 16:03:20 Sessions 1 Manual Loads 0 Difficulty Rogue Special Mode None Game No. 41 Rogue 41 Adventurer 0 Explorer 0 Win Type - Total 0 Types 0/0/0/0/0/0/0/0/0 Lore% 18 Gallery% 24 Achievement% 17 Wizard Run 0 Options --------- Layout 1 ASCII 0 Keyboard 0 Movement Mouse Keybinds 0 Fullscreen 1 Font 24/Smallcaps Map View 50x35 Zoom Use 0% Tactical HUD 1 Map Filters NONE Filters NONE Steam 1 RUN: 8a190369-4a98-4a8a-8a5d-35fba5ceb2a7